bitfinex/quotes_BTCUSD_20241024
["timestamp","ask_amount","ask_price","bid_price","bid_amount"]
[1729766112117,0.60133433,67066.0,67065.0,0.19527704]
[1729766112530,0.71266655,67066.0,67065.0,0.19527704]
[1729766112744,0.69846324,67066.0,67065.0,0.19527704]
[1729766112941,0.71242483,67066.0,67065.0,0.19527704]
[1729766113348,0.69016636,67066.0,67065.0,0.19527704]
[1729766113780,0.60117555,67066.0,67065.0,0.19527704]
[1729766114205,0.43690904,67066.0,67065.0,0.19527704]
[1729766114409,0.60116199,67066.0,67065.0,0.19527704]
[1729766115243,0.45205599,67066.0,67065.0,0.19527704]
[1729766116331,0.5872004,67066.0,67065.0,0.19527704]
[1729766116541,0.69015118,67066.0,67065.0,0.19692504]
[1729766118541,0.69025873,67066.0,67065.0,0.19692504]
[1729766119466,0.60122931,67066.0,67065.0,0.19692504]
[1729766119674,0.64656744,67066.0,67065.0,0.19692504]
[1729766119882,0.49746144,67066.0,67065.0,0.19692504]
[1729766120091,0.45212331,67066.0,67065.0,0.19692504]
[1729766120299,0.49746161,67066.0,67065.0,0.19692504]
[1729766120509,0.60874839,67066.0,67065.0,0.19692504]
[1729766121586,0.49746161,67066.0,67065.0,0.19692504]
[1729766122872,0.64656761,67066.0,67065.0,0.19692504]
[1729766123496,0.63260764,67066.0,67065.0,0.19692504]
[1729766123696,0.64657223,67066.0,67065.0,0.19692504]
[1729766125468,0.78011637,67066.0,67065.0,0.19692504]
[1729766126498,0.64657223,67066.0,67065.0,0.19692504]
[1729766127131,0.64657743,67066.0,67065.0,0.19692504]
[1729766128433,0.49747143,67066.0,67065.0,0.19692504]
[1729766130127,0.4356432,67066.0,67065.0,0.19692504]
[1729766130582,0.4356432,67066.0,67065.0,0.2050066]
[1729766130583,0.30162932,67066.0,67065.0,0.2050066]
[1729766131300,0.4356432,67066.0,67065.0,0.2050066]
[1729766131978,0.17132131,67066.0,67065.0,0.2050066]
[1729766132217,0.2022237,67066.0,67065.0,0.2050066]
[1729766132446,0.33625089,67066.0,67065.0,0.2050066]
[1729766133354,0.03730743,67066.0,67065.0,0.2050066]
[1729766133595,0.000824,67079.0,67066.0,0.2033]
[1729766133818,0.22465515,67077.0,67076.0,0.2083]
[1729766134048,0.15050381,67077.0,67076.0,0.2083]
[1729766134293,0.15050381,67077.0,67076.0,0.2440395]
[1729766134514,0.33874029,67077.0,67076.0,0.33079874]
[1729766134804,0.31540841,67077.0,67076.0,0.30005924]
[1729766135038,0.31540841,67077.0,67076.0,0.2033]
[1729766135484,0.44942612,67077.0,67076.0,0.2033]
[1729766136253,0.15050381,67077.0,67076.0,0.2033]
[1729766137382,0.29958581,67077.0,67076.0,0.2033]
[1729766137619,0.60119608,67077.0,67076.0,0.0807]
[1729766138086,0.46449734,67077.0,67076.0,0.0807]
[1729766141029,0.31541534,67077.0,67076.0,0.0807]
[1729766142001,0.3154105,67077.0,67076.0,0.0807]
[1729766143580,0.36074747,67077.0,67076.0,0.0807]
[1729766145665,0.3747025,67077.0,67076.0,0.0807]
[1729766146118,0.5237845,67077.0,67076.0,0.0807]
[1729766146347,0.3747025,67077.0,67076.0,0.0807]
[1729766146767,0.37469803,67077.0,67076.0,0.0807]
[1729766148316,0.32936106,67077.0,67076.0,0.0807]
[1729766148541,0.31540603,67077.0,67076.0,0.0807]
[1729766148765,0.32936119,67077.0,67076.0,0.0807]
[1729766149192,0.47844319,67077.0,67076.0,0.0807]
[1729766149460,0.32936119,67077.0,67076.0,0.0807]
[1729766150835,0.47844319,67077.0,67076.0,0.0807]
[1729766151897,0.52377304,67077.0,67076.0,0.0807]
[1729766152102,0.47844319,67077.0,67076.0,0.0807]
[1729766152769,0.52377278,67077.0,67076.0,0.0807]
[1729766153427,0.52377604,67077.0,67076.0,0.0807]
[1729766153685,0.66129878,67077.0,67076.0,0.0807]
[1729766154031,0.1,67074.0,67072.0,0.0827]
[1729766154271,0.149102,67068.0,67067.0,0.0827]
[1729766154529,0.249104,67067.0,67066.0,0.001648]
[1729766154766,0.77455469,67067.0,67066.0,0.001648]
[1729766155230,0.77455469,67067.0,67066.0,0.00972448]
[1729766155457,0.62379804,67067.0,67066.0,0.00972448]
[1729766156590,0.62379804,67067.0,67066.0,0.001648]
[1729766156817,0.60983962,67067.0,67066.0,0.001648]
[1729766157028,0.62380054,67067.0,67066.0,0.001648]
[1729766157683,0.57847095,67067.0,67066.0,0.001648]
[1729766158234,0.62380246,67067.0,67066.0,0.001648]
[1729766159467,0.77454151,67067.0,67066.0,0.001648]
[1729766159675,0.77454151,67067.0,67058.0,0.1197]
[1729766159676,0.49703317,67067.0,67058.0,0.1197]
[1729766159883,0.149117,67061.0,67060.0,0.22465515]
[1729766160086,0.46452303,67061.0,67060.0,0.22465515]
[1729766160310,0.149122,67059.0,67058.0,0.1197]
[1729766160538,0.46452803,67059.0,67058.0,0.1197]
[1729766160743,0.46451535,67059.0,67058.0,0.1197]
[1729766162054,0.149131,67055.0,67054.0,0.001646]
[1729766162277,0.46452435,67055.0,67054.0,0.001646]
[1729766162681,0.46452435,67055.0,67054.0,0.080046]
[1729766163345,0.59852774,67055.0,67054.0,0.080046]
[1729766163556,0.59851087,67055.0,67054.0,0.080046]
[1729766163767,0.46452435,67055.0,67054.0,0.080046]
[1729766164383,0.29963481,67055.0,67054.0,0.080046]
[1729766164587,0.46446454,67055.0,67054.0,0.080046]
[1729766164806,0.46446454,67055.0,67054.0,0.204446]
[1729766168088,0.57602475,67055.0,67054.0,0.204446]
[1729766168465,0.46446454,67055.0,67054.0,0.204446]
[1729766174093,0.46428401,67055.0,67054.0,0.204446]
[1729766179027,0.46422825,67055.0,67054.0,0.204446]
[1729766183065,0.55603524,67055.0,67054.0,0.204446]
[1729766183900,0.64784223,67055.0,67054.0,0.001646]
[1729766184147,0.60132775,67055.0,67054.0,0.001646]
[1729766186755,0.149142,67050.0,67049.0,0.1266]
[1729766187011,0.149149,67047.0,67046.0,0.0795]
[1729766187214,0.55605324,67047.0,67046.0,0.0795]
[1729766187790,0.60139147,67047.0,67046.0,0.0795]
[1729766188449,0.60142197,67047.0,67046.0,0.0795]
[1729766190400,0.50961498,67047.0,67046.0,0.0795]
[1729766191975,0.1,67045.0,67040.0,0.0753]
[1729766192204,0.28600569,67041.0,67040.0,0.0753]
[1729766192416,0.149166,67039.0,67038.0,0.1292]
[1729766192634,0.50963657,67039.0,67038.0,0.1292]
[1729766193700,0.46429375,67039.0,67038.0,0.1292]
[1729766194121,0.50963868,67039.0,67038.0,0.1292]
[1729766194530,0.46429375,67039.0,67038.0,0.1292]
[1729766195995,0.4876377,67039.0,67038.0,0.1292]
[1729766196201,0.46429375,67039.0,67038.0,0.1292]
[1729766196829,0.50961568,67039.0,67038.0,0.1292]
[1729766197248,0.64340529,67039.0,67038.0,0.1292]
[1729766197661,0.46429375,67039.0,67038.0,0.1292]
[1729766198271,0.59808336,67039.0,67038.0,0.1292]
[1729766200025,0.46429375,67039.0,67038.0,0.1292]
[1729766201034,0.59808336,67039.0,67038.0,0.1292]
[1729766201463,0.59808336,67039.0,67038.0,0.130848]
[1729766202961,0.59821303,67039.0,67038.0,0.130848]
[1729766205184,0.46436528,67039.0,67038.0,0.130848]
[1729766206651,0.59823075,67039.0,67038.0,0.130848]
[1729766207867,0.46439381,67039.0,67038.0,0.130848]
[1729766208695,0.5982614,67039.0,67038.0,0.130848]
[1729766209580,0.46439381,67039.0,67038.0,0.130848]
[1729766209795,0.5982614,67039.0,67038.0,0.130848]
[1729766210462,0.55625573,67039.0,67038.0,0.130848]
[1729766213681,0.69012332,67039.0,67038.0,0.130848]
[1729766215562,0.73546352,67039.0,67038.0,0.130848]
[1729766218650,0.60159593,67039.0,67038.0,0.130848]
[1729766220125,0.61558183,67039.0,67038.0,0.130848]
[1729766220354,0.52371991,67039.0,67038.0,0.130848]
[1729766220576,0.2240501,67039.0,67038.0,0.210948]
[1729766220792,0.1787099,67039.0,67038.0,0.210948]
[1729766220996,0.1787099,67039.0,67038.0,0.215948]
[1729766221429,0.17871165,67039.0,67038.0,0.215948]
[1729766223405,0.17871165,67039.0,67038.0,0.22283625]
[1729766224909,0.17870662,67039.0,67038.0,0.22283625]
[1729766225741,0.178888,67039.0,67038.0,0.22283625]
[1729766227686,0.31290634,67039.0,67038.0,0.37200525]
[1729766227895,0.178888,67039.0,67038.0,0.22283625]
[1729766228529,0.16490538,67039.0,67038.0,0.22283625]
[1729766228738,0.13401834,67041.0,67039.0,0.2031]
[1729766228944,0.28452215,67041.0,67040.0,0.1981]
[1729766229154,0.29850112,67041.0,67040.0,0.20498272]
[1729766229364,0.46350324,67041.0,67040.0,0.20498272]
[1729766229598,0.3294849,67041.0,67040.0,0.20498272]
[1729766233312,0.46363436,67041.0,67040.0,0.20498272]
[1729766233517,0.3294849,67041.0,67040.0,0.20498272]
[1729766235368,0.32955494,67041.0,67040.0,0.20498272]
[1729766235786,0.31557597,67041.0,67040.0,0.20498272]
[1729766235987,0.32955125,67041.0,67040.0,0.20498272]
[1729766238118,0.47871325,67041.0,67040.0,0.20498272]
[1729766238547,0.32955125,67041.0,67040.0,0.1981]
[1729766238763,0.32955125,67041.0,67040.0,0.20498272]
[1729766239815,0.3295397,67041.0,67040.0,0.20498272]
[1729766246674,0.31556442,67041.0,67040.0,0.20498272]
[1729766246893,0.32955151,67041.0,67040.0,0.20498272]
[1729766249416,0.1644909,67041.0,67040.0,0.20498272]
[1729766249638,0.32956104,67041.0,67040.0,0.20498272]
[1729766250400,0.32956536,67041.0,67040.0,0.20498272]
[1729766251606,0.37498098,67041.0,67040.0,0.20498272]
[1729766254148,0.37498726,67041.0,67040.0,0.20498272]
[1729766256429,0.22448345,67041.0,67040.0,0.20498272]
[1729766256631,0.22453535,67041.0,67040.0,0.20498272]
[1729766256837,0.05941331,67041.0,67040.0,0.20498272]
[1729766257957,0.05941737,67041.0,67040.0,0.20498272]
[1729766259115,0.3737083,67041.0,67040.0,0.20498272]
[1729766259322,0.2245463,67041.0,67040.0,0.20498272]
[1729766260148,0.05941737,67041.0,67040.0,0.20498272]
[1729766261372,0.05941712,67041.0,67040.0,0.20498272]
[1729766262215,0.05941712,67041.0,67040.0,0.20663072]
[1729766265556,0.20857912,67041.0,67040.0,0.20663072]
[1729766265911,0.05941712,67041.0,67040.0,0.20663072]
[1729766268614,0.0454216,67041.0,67040.0,0.20663072]
[1729766268820,0.1945816,67042.0,67040.0,0.20663072]
[1729766269052,0.059414,67041.0,67040.0,0.20663072]
[1729766269273,0.059414,67041.0,67040.0,0.20863072]
[1729766269486,0.059414,67041.0,67040.0,0.20663072]
[1729766269487,0.22468525,67041.0,67040.0,0.20663072]
[1729766269704,0.22468525,67041.0,67040.0,0.21163072]
[1729766276176,0.21069285,67041.0,67040.0,0.21163072]
[1729766276374,0.22468348,67041.0,67040.0,0.21163072]
[1729766279765,0.21069252,67041.0,67040.0,0.21163072]
[1729766279964,0.22468353,67041.0,67040.0,0.21163072]
[1729766280170,0.21069252,67041.0,67040.0,0.21163072]
[1729766280384,0.22468357,67041.0,67040.0,0.21163072]
[1729766280770,0.22468188,67041.0,67040.0,0.21163072]
[1729766287036,0.22468188,67041.0,67040.0,0.36079472]
[1729766287270,0.22468188,67041.0,67040.0,0.21163072]
[1729766289569,0.22468516,67041.0,67040.0,0.21163072]
[1729766293519,0.37579499,67041.0,67040.0,0.21163072]
[1729766294646,0.37579883,67041.0,67040.0,0.21163072]
[1729766295569,0.17926741,67041.0,67040.0,0.45265664]
[1729766295778,0.17926741,67041.0,67040.0,0.45465664]
[1729766295779,0.31357399,67041.0,67040.0,0.45465664]
[1729766295998,0.17926741,67041.0,67040.0,0.45265664]
[1729766296208,0.17926741,67041.0,67040.0,0.36079472]
[1729766299296,0.17921543,67041.0,67040.0,0.36079472]
[1729766304120,0.17921543,67041.0,67040.0,0.21163072]
[1729766304327,0.61616674,67041.0,67040.0,0.01353072]
[1729766304709,0.61616674,67041.0,67040.0,0.006648]
[1729766305160,0.61616674,67041.0,67040.0,0.01342135]
[1729766305343,0.61616674,67041.0,67040.0,0.006648]
[1729766306462,0.61616674,67041.0,67040.0,0.01409868]
[1729766306665,0.61616674,67041.0,67040.0,0.006648]
[1729766306863,0.61616674,67041.0,67040.0,0.01342135]
[1729766307073,0.61616674,67041.0,67040.0,0.006648]
[1729766307228,0.61616674,67041.0,67040.0,0.01492653]
[1729766307435,0.61616674,67041.0,67040.0,0.006648]
[1729766307696,0.61616674,67041.0,67040.0,0.01409868]
[1729766307939,0.61616674,67041.0,67040.0,0.006648]
[1729766308112,0.61616674,67041.0,67040.0,0.01492653]
[1729766308329,0.61616674,67041.0,67040.0,0.006648]
[1729766312182,0.37514282,67041.0,67040.0,0.006648]
[1729766312401,0.39750704,67041.0,67040.0,0.35407092]
[1729766312622,0.39750704,67041.0,67040.0,0.36235019]
[1729766312898,0.37514282,67041.0,67040.0,0.36235019]
[1729766313134,0.22463901,67041.0,67040.0,0.36235019]
[1729766313341,0.22463901,67041.0,67040.0,0.40740235]
[1729766313515,0.17914729,67041.0,67040.0,0.36235019]
[1729766314658,0.17914729,67041.0,67040.0,0.36435019]
[1729766314862,0.17914729,67041.0,67040.0,0.36235019]
[1729766315495,0.17914729,67041.0,67040.0,0.36700086]
[1729766315629,0.17914729,67041.0,67040.0,0.36900086]
[1729766316033,0.17914729,67041.0,67040.0,0.36700086]
[1729766317039,0.17914729,67041.0,67040.0,0.36900086]
[1729766318109,0.17906991,67041.0,67040.0,0.36900086]
[1729766322034,0.17906991,67041.0,67040.0,0.37064886]
[1729766322232,0.17986633,67041.0,67040.0,0.37064886]
[1729766323026,0.17986633,67041.0,67040.0,0.36864886]
[1729766324795,0.16587528,67041.0,67040.0,0.36864886]
[1729766324970,0.17984324,67041.0,67040.0,0.36864886]
[1729766330056,0.16587528,67041.0,67040.0,0.36864886]
[1729766331109,0.17984241,67041.0,67040.0,0.36864886]
[1729766331931,0.17984241,67041.0,67040.0,0.46246127]
[1729766332545,0.17984164,67041.0,67040.0,0.46246127]
[1729766333533,0.17984164,67041.0,67040.0,0.36864886]
[1729766336603,0.17984393,67041.0,67040.0,0.36864886]
[1729766337409,0.17982008,67041.0,67040.0,0.36864886]
[1729766340491,0.17982008,67041.0,67040.0,0.37064886]
[1729766340695,0.16585143,67041.0,67040.0,0.37064886]
[1729766341371,0.16585143,67041.0,67040.0,0.36864886]
[1729766341737,0.16585143,67041.0,67040.0,0.37064886]
[1729766341956,0.17983268,67041.0,67040.0,0.36864886]
[1729766344164,0.17983268,67041.0,67040.0,0.41593091]
[1729766344477,0.17983268,67041.0,67040.0,0.36864886]
[1729766345230,0.17984491,67041.0,67040.0,0.36864886]
[1729766345731,0.17984491,67041.0,67040.0,0.37064886]
[1729766345993,0.17984214,67041.0,67040.0,0.37064886]
[1729766347868,0.17984214,67041.0,67040.0,0.36864886]
[1729766348735,0.17984346,67041.0,67040.0,0.36864886]
[1729766349094,0.2252935,67041.0,67040.0,0.21483419]
[1729766349278,0.2252935,67041.0,67040.0,0.00992727]
[1729766349279,0.3744555,67041.0,67040.0,0.00992727]
[1729766349928,0.50857426,67041.0,67040.0,0.00992727]
[1729766350101,0.3744555,67041.0,67040.0,0.001648]
[1729766350318,0.50857416,67041.0,67040.0,0.0084217]
[1729766350550,0.50857416,67041.0,67040.0,0.001648]
[1729766350739,0.50859338,67041.0,67040.0,0.0084217]
[1729766350946,0.50859338,67041.0,67040.0,0.001648]
[1729766350947,0.37446797,67041.0,67040.0,0.001648]
[1729766351102,0.22530597,67041.0,67040.0,0.001648]
[1729766351906,0.22530597,67041.0,67040.0,0.00842167]
[1729766352119,0.37446797,67041.0,67040.0,0.001648]
[1729766352302,0.37446797,67041.0,67040.0,0.00842167]
[1729766352479,0.37446213,67041.0,67040.0,0.001648]
[1729766352681,0.36047317,67041.0,67040.0,0.00842167]
[1729766352886,0.37446213,67041.0,67040.0,0.001648]
[1729766353130,0.22530013,67041.0,67040.0,0.00842186]
[1729766353271,0.22530013,67041.0,67040.0,0.001648]
[1729766353479,0.22530013,67041.0,67040.0,0.00842186]
[1729766356465,0.06026038,67041.0,67040.0,0.00842186]
[1729766356698,0.22541257,67041.0,67040.0,0.00842186]
[1729766357131,0.22541257,67041.0,67040.0,0.15758586]
[1729766358671,0.37640918,67041.0,67040.0,0.15758586]
[1729766358896,0.37640918,67041.0,67040.0,0.15958586]
[1729766359345,0.22541257,67041.0,67040.0,0.15958586]
[1729766360167,0.22541257,67041.0,67040.0,0.15758586]
[1729766360376,0.06026003,67041.0,67040.0,0.15758586]
[1729766360556,0.22547109,67041.0,67040.0,0.15758586]
[1729766361600,0.22547109,67041.0,67040.0,0.27758586]
[1729766363873,0.3765212,67041.0,67040.0,0.27758586]
[1729766368326,0.36253521,67041.0,67040.0,0.27758586]
[1729766368516,0.37652132,67041.0,67040.0,0.27758586]
[1729766369117,0.37652132,67041.0,67040.0,0.27958586]
[1729766370392,0.22547121,67041.0,67040.0,0.27958586]
[1729766371058,0.37652132,67041.0,67040.0,0.27958586]
[1729766371187,0.18002117,67041.0,67040.0,0.27958586]
[1729766371598,0.18002117,67041.0,67040.0,0.364069]
[1729766371807,0.18002117,67041.0,67040.0,0.36108586]
[1729766372006,0.16603506,67041.0,67040.0,0.36108586]
[1729766372202,0.18002095,67041.0,67040.0,0.36108586]
[1729766372831,0.31427372,67041.0,67040.0,0.36108586]
[1729766375820,0.31427372,67041.0,67040.0,0.49750708]
[1729766376021,0.18002095,67041.0,67040.0,0.49750708]
[1729766379812,0.18001481,67041.0,67040.0,0.49750708]
[1729766381860,0.18001481,67041.0,67040.0,0.589369]
[1729766382065,0.18001481,67041.0,67040.0,0.35908586]
[1729766382500,0.01480375,67041.0,67040.0,0.35908586]
[1729766383742,0.000824,67041.0,67040.0,0.35908586]
[1729766383961,0.01480137,67041.0,67040.0,0.36408586]
[1729766384198,0.01480137,67041.0,67040.0,0.35908586]
[1729766385762,0.17993661,67041.0,67040.0,0.35908586]
[1729766385994,0.17993661,67041.0,67040.0,0.00842186]
[1729766385995,0.27179853,67041.0,67040.0,0.00842186]
[1729766386203,0.4663627,67041.0,67040.0,0.00842186]
[1729766386410,0.37631957,67041.0,67040.0,0.00842186]
[1729766386610,0.37631957,67041.0,67040.0,0.001648]
[1729766387250,0.37634252,67041.0,67040.0,0.00842155]
[1729766387684,0.22535077,67041.0,67040.0,0.00842155]
[1729766387891,0.37633952,67041.0,67040.0,0.00842155]
[1729766388097,0.22535198,67041.0,67040.0,0.00842155]
[1729766392311,0.22531253,67041.0,67040.0,0.00842155]
[1729766393013,0.24865547,67041.0,67040.0,0.00842155]
[1729766396003,0.24865185,67041.0,67040.0,0.00842155]
[1729766396243,0.64017958,67041.0,67040.0,0.00842155]
[1729766396458,0.64017958,67041.0,67040.0,0.001648]
[1729766397139,0.64014869,67041.0,67040.0,0.001648]
[1729766399061,0.61680575,67041.0,67040.0,0.001648]
[1729766402663,0.60283549,67041.0,67040.0,0.001648]
[1729766402879,0.61680084,67041.0,67040.0,0.001648]
[1729766403989,0.60283549,67041.0,67040.0,0.001648]
[1729766404629,0.149166,67039.0,67038.0,0.001648]
[1729766404839,0.55405357,67039.0,67038.0,0.001648]
[1729766405383,0.38897198,67039.0,67038.0,0.001648]
[1729766405578,0.55401881,67039.0,67038.0,0.001648]
[1729766410167,0.09186192,67035.0,67032.0,0.001688]
[1729766410385,0.14918,67033.0,67032.0,0.001688]
[1729766410566,0.51013281,67033.0,67032.0,0.001688]
[1729766412176,0.52409837,67033.0,67032.0,0.001688]
[1729766412400,0.67484017,67033.0,67032.0,0.001688]
[1729766412639,0.52409837,67033.0,67032.0,0.001688]
[1729766413455,0.51013281,67033.0,67032.0,0.001688]
[1729766413661,0.52409608,67033.0,67032.0,0.001688]
[1729766415285,0.52386761,67033.0,67032.0,0.001688]
[1729766415971,0.52386761,67033.0,67022.0,0.001688]
[1729766415972,0.149202,67023.0,67022.0,0.001688]
[1729766416202,0.45087937,67023.0,67022.0,0.001688]
[1729766416456,0.61243502,67023.0,67022.0,0.001688]
[1729766416672,0.50858388,67023.0,67022.0,0.001688]
[1729766416899,0.65778588,67023.0,67022.0,0.001688]
[1729766417124,0.47848744,67023.0,67022.0,0.001688]
[1729766417810,0.65777964,67023.0,67022.0,0.001688]
[1729766419680,0.46323302,67023.0,67022.0,0.210488]
[1729766419917,0.46306214,67023.0,67022.0,0.210488]
[1729766420135,0.32919115,67023.0,67022.0,0.210488]
[1729766420844,0.47839315,67023.0,67022.0,0.210488]
[1729766421066,0.32919115,67023.0,67022.0,0.210488]
[1729766421289,0.47839315,67023.0,67022.0,0.210488]
[1729766424660,0.31366908,67023.0,67022.0,0.210488]
[1729766424883,0.4783921,67023.0,67022.0,0.210488]
[1729766425540,0.57025402,67023.0,67022.0,0.001688]
[1729766425874,0.70412416,67023.0,67022.0,0.001688]
[1729766427613,0.57025402,67023.0,67022.0,0.001688]
[1729766428262,0.57025302,67023.0,67022.0,0.001688]
[1729766428625,0.61558086,67023.0,67022.0,0.001688]
[1729766428859,0.60161859,67023.0,67022.0,0.001688]
[1729766429516,0.55629075,67023.0,67022.0,0.001688]
[1729766429969,0.61559234,67023.0,67022.0,0.001688]
[1729766430211,0.69348342,67023.0,67022.0,0.001688]
[1729766430426,0.149206,67021.0,67020.0,0.001648]
[1729766430629,0.50976358,67021.0,67020.0,0.001648]
[1729766431105,0.7016255,67021.0,67020.0,0.001648]
[1729766431376,0.60976358,67021.0,67020.0,0.001648]
[1729766431620,0.60976358,67021.0,67014.0,0.0823]
[1729766431621,0.24108192,67015.0,67014.0,0.0823]
[1729766431860,0.6016395,67015.0,67014.0,0.0823]
[1729766434456,0.43691648,67015.0,67014.0,0.0823]
[1729766434683,0.60164399,67015.0,67014.0,0.0823]
[1729766437493,0.149227,67012.0,67011.0,0.125748]
[1729766437723,0.55632024,67012.0,67011.0,0.125748]
[1729766438433,0.69014802,67012.0,67011.0,0.125748]
[1729766438679,0.73546668,67012.0,67011.0,0.125748]
[1729766438961,0.6016389,67012.0,67011.0,0.125748]
[1729766439455,0.60158024,67012.0,67011.0,0.125748]
[1729766440415,0.149247,67003.0,67001.0,0.22465515]
[1729766440653,0.04460288,67002.0,67001.0,0.22465515]
[1729766440875,0.04460288,67002.0,67000.0,4.1]
[1729766441334,0.19384988,67003.0,67000.0,4.1]
[1729766442056,0.19384988,67003.0,67000.0,4.249253]
[1729766442293,0.04460288,67002.0,67000.0,4.249253]
[1729766442797,0.19384988,67003.0,67000.0,4.249253]
[1729766443521,0.19384988,67003.0,67001.0,0.1783]
[1729766443759,0.04460288,67002.0,67001.0,0.1783]
[1729766443999,0.04460288,67003.0,67001.0,0.1783]
[1729766444242,0.149249,67002.0,67001.0,0.1783]
[1729766444741,0.04460288,67003.0,67001.0,0.1783]
[1729766445008,0.19384988,67003.0,67001.0,0.1783]
[1729766445763,0.04460406,67003.0,67001.0,0.1783]
[1729766446731,0.19385106,67003.0,67002.0,0.005]
[1729766446985,0.19385106,67003.0,67001.0,0.1783]
[1729766446986,0.149249,67002.0,67001.0,0.0977]
[1729766447201,0.55361282,67002.0,67001.0,0.0977]
[1729766447462,0.25386001,67002.0,67001.0,0.0977]
[1729766447697,0.06690058,67003.0,67002.0,0.0939]
[1729766447905,0.06690058,67003.0,67002.0,0.243149]
[1729766448141,0.06690058,67004.0,67003.0,0.0939]
[1729766448351,0.21740439,67004.0,67003.0,0.0939]
[1729766448561,0.31516394,67004.0,67003.0,0.0939]
[1729766449028,0.4043856,67004.0,67003.0,0.0939]
[1729766449261,0.09186192,67006.0,67003.0,0.1715]
[1729766449262,0.08921584,67006.0,67003.0,0.1715]
[1729766449488,0.298428,67018.0,67003.0,0.1715]
[1729766449489,0.06690785,67009.0,67008.0,0.0962]
[1729766449727,0.33617495,67014.0,67012.0,0.151227]
[1729766449728,0.06690785,67013.0,67012.0,0.151227]
[1729766449940,0.22465515,67014.0,67012.0,0.151227]
[1729766449941,0.22465515,67014.0,67013.0,0.149224]
[1729766450482,0.06690785,67015.0,67014.0,0.149222]
[1729766450483,0.1115198,67015.0,67014.0,0.149222]
[1729766450738,0.0892323,67015.0,67014.0,0.621466]
[1729766450972,0.06692101,67016.0,67015.0,0.32302]
[1729766451194,0.06692101,67017.0,67016.0,0.149218]
[1729766451643,0.0892323,67018.0,67017.0,0.149215]
[1729766452862,0.0892323,67018.0,67015.0,0.472239]
[1729766452863,0.0892323,67018.0,67015.0,0.1738]
[1729766453087,0.20342284,67016.0,67015.0,0.323019]
[1729766453344,0.25656302,67016.0,67015.0,0.323019]
[1729766453584,0.25656302,67016.0,67015.0,0.1738]
[1729766453815,0.25660633,67016.0,67015.0,0.1738]
[1729766454434,0.40582433,67016.0,67015.0,0.1738]
[1729766454709,0.40711014,67016.0,67015.0,0.0962]
[1729766455527,0.55632814,67016.0,67015.0,0.0962]
[1729766455766,0.55632814,67016.0,67014.0,0.001648]
[1729766456000,0.31524822,67015.0,67014.0,0.001648]
[1729766456622,0.46446822,67015.0,67014.0,0.001648]
[1729766458482,0.46454801,67015.0,67014.0,0.001648]
[1729766458704,0.31532801,67015.0,67014.0,0.001648]
[1729766460380,0.33867858,67015.0,67014.0,0.001648]
[1729766461504,0.47263094,67015.0,67014.0,0.001648]
[1729766461721,0.47278531,67015.0,67014.0,0.001648]
[1729766462178,0.44943474,67015.0,67014.0,0.001648]
[1729766462836,0.44943474,67015.0,67014.0,0.15087]
[1729766463934,0.44943474,67015.0,67014.0,0.001648]
[1729766463935,0.31541317,67015.0,67014.0,0.001648]
[1729766464147,0.44944931,67015.0,67014.0,0.001648]
[1729766464392,0.44944931,67015.0,67014.0,0.15087]
[1729766464613,0.16490936,67015.0,67014.0,0.31857]
[1729766464855,0.16490936,67015.0,67014.0,0.467792]
[1729766465315,0.13403614,67016.0,67015.0,0.14922]
[1729766465544,0.17940982,67016.0,67015.0,0.14922]
[1729766465773,0.34434643,67016.0,67015.0,0.14922]
[1729766466012,0.21031029,67016.0,67015.0,0.24562]
[1729766466238,0.27663067,67016.0,67015.0,0.32672]
[1729766466496,0.2542895,67016.0,67015.0,0.32672]
[1729766467176,0.08935289,67016.0,67015.0,0.32672]
[1729766467397,0.2542895,67016.0,67015.0,0.32672]
[1729766467660,0.16493661,67017.0,67016.0,0.005]
[1729766467893,0.000824,67020.0,67019.0,0.149211]
[1729766468341,0.16574712,67020.0,67019.0,0.149211]
[1729766468567,0.16574712,67020.0,67019.0,0.151211]
[1729766469257,0.16574712,67020.0,67019.0,0.149211]
[1729766469491,0.16574712,67020.0,67016.0,0.394831]
[1729766469629,0.16574712,67020.0,67019.0,0.149211]
[1729766469630,0.09268592,67020.0,67019.0,0.149211]
[1729766469855,0.25761385,67020.0,67019.0,0.149211]
[1729766470468,0.54215813,67020.0,67017.0,0.298431]
[1729766470690,0.44947628,67019.0,67016.0,0.245617]
[1729766470920,0.44947628,67019.0,67016.0,0.245618]
[1729766470921,0.22590646,67017.0,67016.0,0.245618]
[1729766471157,0.5413382,67017.0,67016.0,0.245618]
[1729766471362,0.40729366,67017.0,67016.0,0.245618]
[1729766471617,0.54136074,67017.0,67016.0,0.245618]
[1729766471983,0.40730967,67017.0,67016.0,0.245618]
[1729766473009,0.40730967,67017.0,67014.0,0.001648]
[1729766473010,0.14922,67015.0,67014.0,0.001648]
[1729766473241,0.36079727,67015.0,67014.0,0.001648]
[1729766473449,0.51001727,67015.0,67014.0,0.001648]
[1729766473935,0.51001957,67015.0,67014.0,0.001648]
[1729766474613,0.46466775,67015.0,67014.0,0.001648]
[1729766474859,0.360803,67015.0,67014.0,0.001648]
[1729766475071,0.46466775,67015.0,67014.0,0.001648]
[1729766475287,0.31544775,67015.0,67014.0,0.001648]
[1729766475528,0.3608047,67015.0,67014.0,0.001648]
[1729766475973,0.5100247,67015.0,67014.0,0.001648]
[1729766476152,0.46466775,67015.0,67014.0,0.001648]
[1729766476365,0.51002701,67015.0,67014.0,0.00849455]
[1729766476577,0.46466775,67015.0,67014.0,0.001648]
[1729766476828,0.46466775,67015.0,67014.0,0.00849455]
[1729766476829,0.51003036,67015.0,67014.0,0.00849455]
[1729766477045,0.46466775,67015.0,67014.0,0.001648]
[1729766477271,0.46466775,67015.0,67014.0,0.00849455]
[1729766477480,0.46466775,67015.0,67014.0,0.001648]
[1729766477655,0.46466775,67015.0,67014.0,0.00849455]
[1729766477868,0.16494394,67015.0,67014.0,0.32557]
[1729766478075,0.13407976,67016.0,67015.0,0.14922]
[1729766478498,0.13407976,67016.0,67015.0,0.15606496]
[1729766479261,0.13490376,67016.0,67015.0,0.15606496]
[1729766479464,0.29988044,67016.0,67015.0,0.15606496]
[1729766480360,0.29988044,67016.0,67015.0,0.00684496]
[1729766480558,0.21117571,67016.0,67015.0,0.15606496]
[1729766480952,0.21117571,67016.0,67015.0,0.00684496]
[1729766480953,0.36167952,67016.0,67015.0,0.00684496]
[1729766481157,0.36167952,67016.0,67014.0,0.32557]
[1729766481388,0.16497668,67015.0,67014.0,0.32557]
[1729766481816,0.34443958,67015.0,67014.0,0.32557]
[1729766482928,0.21036315,67015.0,67014.0,0.176348]